[Event "Mitropa Cup Women 2024"]
[Site "Apolda"]
[Date "2024.02.23"]
[Round "9.19"]
[White "Rybackova, Lucie"]
[Black "Klek, Hanna Marie"]
[Result "1/2-1/2"]
[ECO "D11"]
[WhiteElo "1970"]
[BlackElo "2284"]
[Annotator "TA"]
[PlyCount "101"]
[EventDate "2024.02.15"]
[EventType "team-tourn"]
[EventCountry "GER"]
[SourceTitle "playchess.com"]
[Source "ChessBase"]
[SourceQuality "1"]
[WhiteTeam "Czech Republic"]
[BlackTeam "Germany"]
[WhiteTeamCountry "CZE"]
[BlackTeamCountry "GER"]
[TimeControl "40/5400+30:1800+30"]

{[%evp 14,101,0,0,14,0,0,0,0,0,18,0,0,0,0,-14,30,35,27,29,29,25,37,17,34,21,15,24,36,0,51,56,82,70,105,78,97,101,77,98,122,77,68,57,43,0,44,0,8,0,12,15,182,199,170,59,50,54,87,94,101,96,118,73,94,68,53,53,89,0,0,0,61,0,75,0,58,-71,75,82,82,27,82,28,25,0,82,0,28,0]} 1. d4 {[%emt 0:00:02]} d5 {[%emt 0:00:14]} 2. Nf3 {[%emt 0:00:11]} Nf6 {[%emt 0:00:07]} 3. g3 {[%emt 0:00:11]} Bf5 {[%emt 0:00:07]} 4. Bg2 {[%emt 0:00:19]} h6 {[%emt 0:00:12]} 5. O-O {[%emt 0:00:28]} e6 {[%emt 0:00:35]} 6. c4 {[%emt 0:00:46]} c6 {[%emt 0:00:09]} 7. Nc3 {[%emt 0:01:28]} Be7 {[%emt 0:06:46]} 8. b3 {[%emt 0:01:43]} O-O {[%emt 0:01:15]} 9. e3 {[%emt 0:02:13]} Nbd7 {[%emt 0:01:01]} 10. Bb2 {[%emt 0:00:32]} Re8 {[%emt 0:01:32] The position is equal.} 11. Qe2 {[%emt 0:07:53]} a6 {[%emt 0:06:17]} 12. c5 {[%emt 0:15:58]} Ne4 {[%emt 0:03:08]} 13. Nxe4 {[%emt 0:13:53]} Bxe4 {[%emt 0:00:41]} 14. Bc3 {[%emt 0:03:04]} e5 {[%emt 0:07:29]} 15. Nxe5 {[%emt 0:06:02]} (15. dxe5 Bxc5 16. Rac1 a5 $17) 15... Bxg2 {[%emt 0:00:31]} 16. Kxg2 {[%emt 0:00:13][%cal Oc3a5]} Nxe5 {[%emt 0:00:07]} 17. dxe5 {[%emt 0:00:02]} Bxc5 {[%emt 0:00:12]} 18. Rad1 {[%emt 0:01:15]} Qb6 {[%emt 0:06:10]} 19. h4 {[%emt 0:04:19]} a5 {[%emt 0:01:54]} 20. Qg4 {[%emt 0:01:56][%cal Oe5e6]} Bf8 {[%emt 0:02:32]} 21. h5 {[%emt 0:04:05]} a4 {[%emt 0:03:09]} 22. bxa4 $14 {[%emt 0:04:34][%cal Bb3a4,Ba4a5][%mdl 32]} Qc5 {[%emt 0:00:39]} 23. Rc1 {[%emt 0:05:51]} Qa3 {[%emt 0:00:57][%csl LRa2,LRa4]} 24. a5 {[%emt 0:00:15]} Qxa2 {[%emt 0:02:58]} 25. Rb1 {[%emt 0:05:19] Against Qb3} Qa3 {[%emt 0:02:48]} 26. Rfc1 {[%emt 0:00:48]} Ra7 {[%emt 0:10:35]} 27. Ra1 {[%emt 0:05:32]} Qe7 {[%emt 0:01:04]} 28. Bd4 $36 {[%emt 0:01:21][%mdl 2048] White has some pressure.} Ra6 {[%emt 0:00:40]} 29. Bc3 {[%emt 0:03:00]} Qc7 {[%emt 0:05:02]} 30. f4 {[%emt 0:01:00]} c5 {[%emt 0:01:53]} 31. f5 {[%emt 0:01:55]} Rc6 {[%emt 0:07:24][%cal Od5d4]} 32. Rf1 {[%emt 0:03:55][%cal Oe5e6]} Rxe5 $2 {[%emt 0:05:56]} (32... d4 $1 $11 {and Black has nothing to worry.} 33. exd4 cxd4 34. Bxd4 Rc2+ 35. Kh3 Qc6) 33. Bxe5 $18 {[%emt 0:00:54]} Qxe5 {[%emt 0:00:02]} 34. Qf4 {[%emt 0:01:08]} (34. Rab1 $1 $18 {[%cal Rb1b7]}) 34... Qb2+ $14 {[%emt 0:01:42]} 35. Qf2 {[%emt 0:00:17]} Qc3 {[%emt 0:07:07]} 36. Rfc1 {[%emt 0:01:36]} Qe5 {[%emt 0:01:20]} 37. Rab1 {[%emt 0:01:39]} Rf6 {[%emt 0:01:16]} 38. Rf1 {[%emt 0:00:50]} (38. Rxb7 $2 {is the wrong capture.} Rxf5 39. Qe2 Bd6 $19 (39... Qe4+ $2 40. Kh3 $19)) 38... Qc7 {[%emt 0:01:29]} 39. Qd2 {[%emt 0:01:11]} Rd6 {[%emt 0:00:56]} 40. Qc3 {[%emt 0:01:23]} Be7 {[%emt 0:01:54]} 41. Rf2 {[%emt 0:03:01] White has more active pieces.} (41. Qb3 $16 Qxa5 42. Qxb7) 41... Bf6 {[%emt 0:01:43]} 42. Qb3 {[%emt 0:01:35]} Rd7 {[%emt 0:03:13]} (42... Rd8 $11) 43. Qb5 {[%emt 0:02:13]} (43. a6 $1 $14 bxa6 44. Qb8+ Kh7 45. Qxc7 Rxc7 46. Rd1) 43... Re7 {[%emt 0:02:39] [#]} (43... Be5 $11 {remains equal.}) 44. Rf3 {[%emt 0:01:53]} ({White should play} 44. a6 $1 $16 {[%cal Ra6b7]} bxa6 (44... Rxe3 45. Rf3 $18) 45. Qb8+ Kh7 46. Qxc7 Rxc7 47. Rd2) 44... Bg5 {[%emt 0:05:46]} (44... Kh7 $11) 45. Rb3 {[%emt 0:02:19]} (45. a6 $14 {keeps the upper hand.} bxa6 46. Qb8+ Qxb8 47. Rxb8+ Kh7 48. Rd8) 45... d4 {[%emt 0:05:53]} (45... c4 $17 {and life is bright.} 46. Rb2 c3 (46... Bxe3 47. a6 $14)) 46. exd4 $16 {[%emt 0:03:32]} cxd4 {[%emt 0:00:09] [#]} 47. Rb2 {[%emt 0:01:27] Prevents Qc2+} ({White should try} 47. Rf2 $1 $16) 47... Qc1 {[%emt 0:01:41]} (47... Bc1 $11 48. Ra2 Be3) 48. Rf1 {[%emt 0:04:27]} (48. Rff2 $16) 48... Qc3 $11 {[%emt 0:04:37] And now ...Re3 would win.} 49. Rf3 {[%emt 0:02:50]} (49. Re2 $11) 49... Qc1 $1 $16 {[%emt 0:02:59]} 50. Rf1 {[%emt 0:00:41]} ({Better is} 50. Rff2 $16) 50... Qc3 $11 {[%emt 0:00:58]} 51. Rf3 {[%emt 0:01:30] Weighted Error Value: White=0.30/Black=0.27 (precise) .  Loses game:     	---       	Black=1      Mistake:       	White=9     	Black=6      Inaccurate:     	White=6     	Black=6      OK:         	White=14    	Black=10     Best:        	White=2     	Black=3      Strong:       	---       	Black=1} 1/2-1/2

[Event "Mitropa Cup Women 2024"]
[Site "Apolda"]
[Date "2024.02.23"]
[Round "9.20"]
[White "Dolzhykova, Kateryna"]
[Black "Fizerova, Lucie"]
[Result "1-0"]
[ECO "C26"]
[WhiteElo "2227"]
[BlackElo "1794"]
[Annotator "TA"]
[PlyCount "95"]
[EventDate "2024.02.15"]
[EventType "team-tourn"]
[EventCountry "GER"]
[SourceTitle "playchess.com"]
[Source "ChessBase"]
[SourceQuality "1"]
[WhiteTeam "Germany"]
[BlackTeam "Czech Republic"]
[WhiteTeamCountry "GER"]
[BlackTeamCountry "CZE"]
[TimeControl "40/5400+30:1800+30"]

{[%evp 16,95,51,47,47,45,50,60,70,60,71,51,116,120,138,131,134,139,132,137,154,147,195,188,192,193,193,193,192,189,267,243,303,300,303,309,328,307,294,287,287,193,249,238,335,314,414,392,412,390,655,706,695,529,576,632,641,641,627,622,670,650,754,750,853,842,836,835,813,828,788,780,1209,1190,12075,9146,7806,7428,29963,5743,5106,4718]} 1. e4 {[%emt 0:00:01]} e5 {[%emt 0:00:09]} 2. Nc3 {[%emt 0:00:05]} Nf6 {[%emt 0:00:12]} 3. g3 {[%emt 0:00:05]} Bc5 {[%emt 0:00:57]} 4. Bg2 {[%emt 0:00:13]} O-O {[%emt 0:01:15]} 5. Nge2 {[%emt 0:00:47]} Nc6 {[%emt 0:01:28]} 6. O-O {[%emt 0:00:33]} d6 {[%emt 0:01:11]} 7. Na4 {[%emt 0:00:33]} Bb6 {[%emt 0:01:47]} 8. Nxb6 {[%emt 0:00:09]} axb6 {[%emt 0:00:05]} 9. d4 {[%emt 0:00:35]} exd4 {[%emt 0:02:28]} 10. Nxd4 {[%emt 0:00:15]} Nxd4 {[%emt 0:04:21]} 11. Qxd4 {[%emt 0:00:11]} h6 {[%emt 0:03:35] White is slightly better.} 12. b3 {[%emt 0:00:47]} Be6 {[%emt 0:09:45]} 13. c4 {[%emt 0:03:04]} Qd7 {[%emt 0:05:42] [#]} ({Black should play} 13... Nd7 $14) 14. Bxh6 $1 $16 {[%emt 0:02:09][%mdl 512]} Bh3 {[%emt 0:02:10]} (14... b5 15. cxb5) 15. Bg5 {[%emt 0:03:25]} Bxg2 {[%emt 0:02:24]} 16. Kxg2 {[%emt 0:00:13]} Nh7 {[%emt 0:01:37]} 17. Bd2 {[%emt 0:01:44][%cal Bg5d2,Bd2c3,Bc3b2][%mdl 32] White is more active.} Rfe8 {[%emt 0:01:43]} 18. a4 {[%emt 0:02:11]} Nf6 {[%emt 0:02:19]} (18... Qe6 $16) 19. f3 $18 {[%emt 0:05:56]} Re6 {[%emt 0:03:46]} 20. h4 {[%emt 0:01:17][%cal Bh2h4,Bh4h5,Bh5h6][%mdl 32]} Rae8 {[%emt 0:00:57]} 21. Rae1 {[%emt 0:03:14]} Qc6 {[%emt 0:01:31]} 22. Bc3 {[%emt 0:04:57]} Qd7 {[%emt 0:02:48]} (22... Qc5 $142 23. g4 Qxd4 24. Bxd4 Nd7) 23. Rh1 {[%emt 0:01:44]} c5 {[%emt 0:03:47]} 24. Qd2 {[%emt 0:01:02]} Nh7 {[%emt 0:06:33]} 25. h5 {[%emt 0:01:32]} Qe7 {[%emt 0:06:07]} 26. h6 {[%emt 0:04:22]} g6 {[%emt 0:01:04]} 27. Bb2 {[%emt 0:03:14]} f6 {[%emt 0:02:07]} 28. b4 $40 {[%emt 0:02:56][%mdl 128] White attacks with force.} Ra8 {[%emt 0:07:48]} (28... f5 $142 29. Qc3 Qf6 30. Qxf6 Nxf6 31. Bxf6 Rxf6 32. exf5 Rxe1 33. Rxe1 gxf5 34. Re8+ Kh7 35. Re7+ Kxh6) 29. a5 {[%emt 0:01:06]} bxa5 {[%emt 0:09:18]} (29... cxb4 {keeps fighting.} 30. axb6 Rc8) 30. bxa5 {[%emt 0:00:13]} Nf8 {[%emt 0:01:29]} 31. Bc3 {[%emt 0:00:44]} Kh7 {[%emt 0:00:51]} 32. Qd5 {[%emt 0:01:05] [#] Strongly threatening Rb1.} Ra6 $2 {[%emt 0:06:08]} (32... Rd8 33. Rb1 Rd7) 33. Rb1 {[%emt 0:00:34] Black is weak on the dark squares} Ra7 {[%emt 0:01:07]} 34. Rb2 {[%emt 0:01:19] Rhb1 would now be deadly.} Qf7 {[%emt 0:04:26]} 35. Rhb1 {[%emt 0:01:00]} Re7 {[%emt 0:01:45]} 36. Qxd6 {[%emt 0:00:45]} Ne6 {[%emt 0:01:11]} 37. Qb8 {[%emt 0:00:18] Prevents Ra8.} b6 {[%emt 0:00:43]} 38. Rxb6 {[%emt 0:00:36]} Nd4 {[%emt 0:00:45]} 39. Qd6 {[%emt 0:05:12][%csl LRc5,LRd4,LRf6]} Qxc4 {[%emt 0:01:58]} 40. Qxf6 {[%emt 0:01:25]} Qf7 {[%emt 0:00:39]} 41. Bxd4 {[%emt 0:31:49]} cxd4 {[%emt 0:01:01][%cal Bc5d4,Bd4d3,Bd3d2][%mdl 32]} 42. Qxf7+ {[%emt 0:00:00]} Rxf7 {[%emt 0:00:15][%mdl 4096] Endgame. KRR-KRR} 43. a6 {[%emt 0:00:00]} Kxh6 {[%emt 0:01:19]} 44. Rb7 {[%emt 0:00:00]} d3 {[%emt 0:00:59]} 45. Kf2 {[%emt 0:00:00]} d2 {[%emt 0:02:38]} 46. Ke2 {[%emt 0:00:00] Threatening mate with Rxf7.} Rd7 {[%emt 0:00:30]} 47. Rxa7 {[%emt 0:00:00]} Rxa7 {[%emt 0:00:08]} 48. Ra1 {[%emt 0:00:00] White took control after the opening.   Weighted Error Value: White=0.13 (very precise) /Black=0.34.  Mistake:       	---       	Black=6      Inaccurate:     	White=1     	Black=1      OK:         	White=15    	Black=8} (48. Kxd2 Rxa6 49. Rh1+ Kg7 $18) 1-0